bitfinex/quotes_ETHUSD_20220120
["timestamp","ask_amount","ask_price","bid_price","bid_amount"]
[1642720610417,1.51046275,3035.7,3034.6,0.00284212]
[1642720610418,0.00170527,3035.4,3034.6,0.00284212]
[1642720610819,1.28708546,3035.0,3034.6,0.00284212]
[1642720611216,3.90190027,3035.0,3034.6,0.00284212]
[1642720611418,0.1318,3034.9,3033.9,0.00682108]
[1642720611618,0.1318,3034.9,3033.4,0.0096632]
[1642720611619,0.00768853,3034.8,3033.4,0.0096632]
[1642720611890,0.1318,3034.7,3033.4,0.0096632]
[1642720612081,0.95602,3034.9,3034.8,0.02173338]
[1642720612282,0.82422,3034.9,3034.8,0.02173338]
[1642720612480,0.82422,3034.9,3034.8,0.02343865]
[1642720612687,1.12422,3034.9,3034.8,0.02343865]
[1642720613384,0.82422,3034.9,3034.8,0.02343865]
[1642720613589,4.10602,3034.9,3034.8,0.02343865]
[1642720613784,4.40602,3034.9,3034.8,0.02343865]
[1642720613985,4.10602,3034.9,3034.8,0.02343865]
[1642720614388,4.93026,3034.9,3034.8,0.02343865]
[1642720614789,0.1318,3034.9,3034.8,0.02343865]
[1642720615190,0.00113684,3035.3,3034.8,0.02343865]
[1642720615615,0.00113684,3035.3,3034.9,0.00113685]
[1642720615816,0.00113684,3035.3,3034.9,2.95915364]
[1642720616019,0.00170527,3035.2,3035.0,0.01191489]
[1642720616224,0.00170527,3035.2,3034.9,4.48559233]
[1642720616422,0.1318,3035.6,3034.9,4.48559233]
[1642720616423,0.00113685,3035.1,3034.9,2.95915364]
[1642720616821,0.1318,3035.6,3034.9,2.95915364]
[1642720616822,0.00341054,3035.5,3034.9,2.95915364]
[1642720617223,0.00284212,3035.4,3034.9,2.95915364]
[1642720617620,0.1318,3035.6,3034.9,1.45915364]
[1642720617621,0.00227369,3035.3,3034.9,1.45915364]
[1642720618120,0.1318,3035.6,3034.9,1.45915364]
[1642720618121,0.00170527,3035.2,3034.9,1.45915364]
[1642720618521,1.46266185,3036.2,3034.9,1.45915364]
[1642720618522,0.00113685,3035.1,3034.9,1.45915364]
[1642720618922,0.00682108,3036.1,3034.9,1.45915364]
[1642720619367,0.00625266,3036.0,3034.9,1.45915364]
[1642720619567,1.57256304,3036.0,3034.9,1.45915364]
[1642720619767,0.00568424,3035.9,3034.9,1.45915364]
[1642720620176,0.00511581,3035.8,3034.9,1.45915364]
[1642720620373,1.78581807,3036.4,3035.5,3.15]
[1642720620374,0.26989997,3036.4,3035.5,3.15]
[1642720620572,1.53410947,3037.4,3035.5,3.15]
[1642720620573,0.1317,3037.2,3035.5,3.27236561]
[1642720620770,0.0022737,3036.2,3035.6,1.6468339]
[1642720620975,0.0022737,3036.2,3035.6,2.0278339]
[1642720621170,0.00170527,3036.1,3035.7,0.16481]
[1642720621376,0.00170527,3036.1,3035.6,2.0278339]
[1642720621377,5.27e-06,3036.1,3035.6,2.0278339]
[1642720621570,0.00113685,3036.0,3035.9,3.97344]
[1642720621774,3.685e-05,3036.0,3035.9,3.97344]
[1642720621974,2.50137789,3037.8,3035.9,3.97344]
[1642720621975,0.00910005,3037.7,3035.9,5.52148157]
[1642720622173,1.14280729,3037.6,3035.9,5.52148157]
[1642720622373,1.55,3036.3,3035.5,1.64689]
[1642720622578,1.55,3036.3,3034.5,7.02105]
[1642720622579,4.28864658,3036.2,3034.5,7.02105]
[1642720622774,4.28864658,3036.2,3034.0,0.01249111]
[1642720622775,1.13875584,3036.1,3034.6,1.55038964]
[1642720623049,1.66266616,3034.7,3034.6,0.00568424]
[1642720623252,1.98204789,3034.7,3034.6,0.00568424]
[1642720623450,1.98204789,3034.7,3034.3,1.2637204]
[1642720623650,1.98204789,3034.7,3034.4,1.23304026]
[1642720623849,1.98204789,3034.7,3034.4,1.23986135]
[1642720623850,2.28204789,3034.7,3034.4,1.23986135]
[1642720624052,2.28204789,3034.7,3034.5,0.00625266]
[1642720624454,3.36461,3034.6,3034.5,5.266e-05]
[1642720624652,3.2,3034.5,3034.4,4.026e-05]
[1642720624849,3.21458421,3034.4,3033.3,0.6]
[1642720625052,0.82444,3034.2,3033.8,1.28864165]
[1642720625249,0.1318,3034.1,3033.8,1.28864165]
[1642720625451,3.31461,3033.9,3033.8,1.28864165]
[1642720625847,3.31461,3033.9,3033.8,1.29262062]
[1642720627169,3.31461,3033.9,3033.8,2.062e-05]
[1642720627170,4.75876688,3033.9,3033.8,2.062e-05]
[1642720627373,45.2,3033.8,3033.3,0.4251]
[1642720627573,3.5494951,3033.7,3031.6,5.0495]
[1642720627773,3.5494951,3033.7,3031.7,1.82555272]
[1642720627775,0.01294094,3033.4,3031.7,1.82555272]
[1642720627972,0.01293393,3032.9,3031.8,1.82383304]
[1642720628179,0.8248,3032.9,3031.9,1.82383304]
[1642720628372,3.40729,3033.3,3031.7,0.09651577]
[1642720628373,1.44477093,3033.1,3032.8,0.00639478]
[1642720628574,0.82477,3033.0,3032.9,1.2681055]
[1642720628773,2.85465,3033.3,3032.9,1.27322131]
[1642720628973,0.0008,3033.7,3032.9,1.27322131]
[1642720629176,0.01240481,3033.0,3031.7,0.09651577]
[1642720629577,0.01240481,3033.0,3031.2,0.0033576]
[1642720629578,0.01240481,3033.0,3031.8,0.00682109]
[1642720629774,1.78106,3032.9,3031.9,1.45455204]
[1642720629974,0.16461,3032.8,3031.9,1.45455204]
[1642720630174,0.16461,3032.8,3032.0,0.00568424]
[1642720630175,0.1318,3032.7,3032.0,0.00568424]
[1642720630376,1.39647647,3032.7,3032.1,1.36867564]
[1642720630636,1.20334647,3032.6,3032.0,0.00568424]
[1642720630836,1.20334647,3032.6,3032.2,0.00454739]
[1642720630837,0.51027647,3032.5,3032.2,0.00454739]
[1642720631041,3.36066,3032.7,3032.4,1.36077973]
[1642720631042,0.1318,3032.7,3032.4,1.36077973]
[1642720631339,0.37847647,3032.6,3032.5,1.55055659]
[1642720632038,0.00113684,3033.2,3032.5,1.55055659]
[1642720632039,0.37847647,3033.1,3032.5,1.55055659]
[1642720632238,0.16461,3033.0,3032.5,1.55055659]
[1642720632437,0.36522303,3033.0,3032.6,0.0022737]
[1642720632738,0.36522303,3033.1,3032.6,0.0022737]
[1642720633944,0.16461,3033.0,3032.6,0.0022737]
[1642720634144,0.52983303,3033.0,3032.6,0.0022737]
[1642720634407,0.43293684,3033.2,3032.6,0.0022737]
[1642720634604,0.00113684,3033.2,3032.6,0.0022737]
[1642720636205,3.684e-05,3033.2,3032.6,1.55086851]
[1642720636407,3.684e-05,3033.2,3032.7,3.76494481]
[1642720636607,0.01286611,3035.2,3032.8,4.65560309]
[1642720636806,0.01286611,3035.2,3034.3,1.33137137]
[1642720637008,0.01286611,3035.2,3034.4,0.03107068]
[1642720637707,0.1318,3036.5,3034.9,0.3]
[1642720637708,0.01285873,3035.8,3034.9,0.3]
[1642720637905,0.01285873,3035.8,3035.0,0.02943356]
[1642720638122,0.01591586,3036.0,3035.1,0.16465]
[1642720638326,0.1317,3037.2,3035.2,22.50234297]
[1642720638531,1.27874645,3037.1,3035.6,0.82331]
[1642720638730,0.01242217,3037.8,3036.6,1.19568988]
[1642720638927,0.01242217,3037.8,3036.7,0.12118203]
[1642720638928,1.19008596,3037.7,3036.7,0.12118203]
[1642720639129,0.00682108,3037.7,3036.7,0.12118203]
[1642720639329,1.38794713,3037.6,3036.8,0.381]
[1642720639532,0.00682108,3037.7,3036.9,0.02199168]
[1642720639728,0.06,3038.2,3037.0,0.381]
[1642720639729,8.423e-05,3037.5,3037.0,0.381]
[1642720639928,5.265e-05,3037.6,3037.1,0.16465]
[1642720640128,0.06,3038.2,3037.2,0.40330888]
[1642720640129,1.15537548,3037.9,3037.2,0.40330888]
[1642720640335,0.00349477,3038.1,3037.2,0.40330888]
[1642720640336,0.00349477,3038.1,3037.2,0.00782104]
[1642720640338,0.01264641,3037.4,3037.2,0.00782104]
[1642720640629,0.01264641,3037.4,3036.5,0.0118]
[1642720640831,1.43419077,3037.4,3036.5,0.0118]
[1642720641029,1.17081161,3037.3,3036.5,0.0118]
[1642720641228,1.26621806,3037.2,3036.5,0.0118]
[1642720641429,1.26621806,3037.2,3035.4,0.1317]
[1642720641430,0.01240206,3036.7,3035.4,0.14975266]
[1642720641633,0.01240206,3036.7,3036.0,0.01464212]
[1642720641875,1.39675082,3035.8,3035.5,0.01748424]
[1642720642293,1.39675082,3035.8,3033.7,4.9795358]
[1642720642294,1.77775082,3035.8,3034.7,0.02203163]
[1642720642475,1.77775082,3035.8,3034.7,1.13467769]
[1642720642476,1.28541785,3035.3,3034.7,1.13467769]
[1642720642678,1.28541785,3035.3,3034.0,0.1317]
[1642720642679,1.23541785,3035.3,3034.4,0.0237369]
[1642720642878,1.23541785,3035.3,3034.8,0.0214632]
[1642720643079,0.33809419,3036.1,3034.7,0.16465]
[1642720643080,0.04168419,3036.1,3034.7,0.16465]
[1642720643278,0.04168419,3036.1,3034.8,0.1317]
[1642720643480,0.0063929,3036.7,3035.0,3.15]
[1642720643679,2.1317,3036.9,3035.0,3.15]
[1642720643680,0.1317,3036.9,3035.0,3.15]
[1642720643982,0.84561,3037.0,3035.1,0.15145793]
[1642720643983,1.17902075,3036.3,3035.1,0.15145793]
[1642720644277,2.60059037,3036.3,3035.7,1.39030616]
[1642720644478,0.54561,3037.0,3035.7,1.39030616]
[1642720644685,0.00684808,3037.2,3035.8,0.01577897]
[1642720644879,3.55040737,3037.5,3035.9,3.1625547]
[1642720645081,1.18836458,3037.4,3035.9,3.1625547]
[1642720645278,1.18836458,3037.4,3036.0,0.01464212]
[1642720645518,1.18836458,3037.4,3036.2,1.41205636]
[1642720645519,1.12581967,3036.3,3036.2,1.41205636]
[1642720645722,1.12581967,3036.3,3036.0,0.01464212]
[1642720645922,1.12581967,3036.3,3036.2,0.01350527]
[1642720646120,1.12581967,3036.3,3035.3,0.01862109]
[1642720646319,1.12581967,3036.3,3035.2,0.01918951]
[1642720646320,0.5127,3036.2,3035.2,0.01918951]
[1642720646526,0.01292487,3036.1,3035.2,0.01918951]
[1642720646726,3.15493587,3035.3,3035.2,0.01918951]
[1642720646929,3.15493587,3035.3,3034.9,0.02089478]
[1642720646930,4.72215357,3035.3,3034.9,0.02089478]
[1642720647127,5.15385357,3035.3,3034.7,0.02203163]
[1642720647330,5.14713229,3035.3,3033.9,0.02657901]
[1642720647726,1.46523636,3034.6,3033.9,0.02657901]
[1642720647927,1.11402918,3034.5,3033.9,1.25192998]
[1642720648127,1.41583688,3034.5,3033.2,0.1318]
[1642720648329,0.00284211,3034.4,3033.1,0.29645]
[1642720648528,0.00284211,3034.4,3033.3,0.00341054]
[1642720648727,0.00227369,3034.3,3033.3,0.00341054]
[1642720649127,1.11402918,3034.5,3033.9,1.33482348]
[1642720649128,0.00170527,3034.2,3033.9,1.33482348]
[1642720649578,0.00113684,3034.1,3033.9,1.63482348]
[1642720649775,0.00113684,3034.1,3033.9,1.33482348]
[1642720650083,0.16461,3034.8,3033.9,1.33482348]
[1642720650277,2.00625265,3035.0,3033.9,1.33482348]
[1642720650278,0.1318,3034.7,3033.9,1.33482348]
[1642720650474,0.00454738,3034.7,3033.9,1.33482348]
[1642720650674,0.00397896,3034.6,3033.9,0.90846918]
[1642720651076,0.00341054,3034.5,3033.9,0.90846918]
[1642720651276,0.00341054,3034.5,3033.9,1.20846918]
[1642720651478,0.00284211,3034.4,3033.9,1.20846918]
[1642720651775,0.16461,3035.2,3033.9,1.20846918]
[1642720651776,0.00227369,3034.3,3033.9,1.20846918]
[1642720652075,0.16461,3035.2,3033.9,1.20846918]
[1642720652076,0.00170527,3034.2,3033.9,1.20846918]
[1642720652476,0.00113684,3034.1,3033.9,1.20846918]
[1642720652682,1.04406176,3034.1,3033.9,0.3]
[1642720652878,1.04406176,3034.1,3033.3,0.11477897]
[1642720653327,1.04406176,3034.1,3033.4,0.00284212]
[1642720653728,1.04406176,3034.1,3033.4,1.64467801]
[1642720653925,1.04406176,3034.1,3033.4,0.00284212]
[1642720654124,1.04406176,3034.1,3033.5,0.0022737]
[1642720654336,1.04406176,3034.1,3033.4,0.00284212]
[1642720654337,0.63220795,3034.1,3033.4,0.00284212]
[1642720654532,0.93220795,3034.1,3033.4,0.00284212]
[1642720654931,0.93220795,3034.1,3032.6,0.13819997]
[1642720654932,0.381,3034.0,3033.1,0.00454739]
[1642720655133,2.65663003,3033.2,3032.7,0.00682109]
[1642720655335,2.65663003,3033.2,3032.8,0.00625266]
[1642720655336,3.28770114,3033.2,3032.8,0.00625266]
[1642720655530,3.28770114,3033.2,3032.7,0.00682109]
[1642720656130,3.28770114,3033.2,3032.6,0.00738951]
[1642720656331,1.74144392,3033.2,3032.6,0.00738951]
[1642720656534,0.32764428,3033.2,3032.6,0.00738951]
[1642720656996,0.32764428,3033.8,3032.6,0.00738951]
[1642720657195,0.32764428,3034.0,3032.6,0.00738951]
[1642720657398,0.32764428,3034.0,3033.5,1.45441261]
[1642720657697,0.32764428,3034.0,3033.6,0.00170527]
[1642720658297,0.00113684,3034.1,3033.6,0.00170527]
[1642720658498,0.00113684,3034.1,3033.1,0.00454739]
[1642720658900,1.10596355,3033.7,3033.1,0.00454739]
[1642720659101,1.31929556,3033.6,3033.1,0.00454739]
[1642720659300,1.31929556,3033.6,3032.3,0.01289802]
[1642720659301,0.16461,3033.5,3032.9,0.00568424]
[1642720659500,0.16461,3033.5,3031.8,0.11477897]
[1642720659501,0.1318,3033.4,3032.6,0.00738951]
[1642720659699,0.1318,3033.4,3031.8,0.11477897]
[1642720659700,3.36064058,3033.4,3032.4,0.00852636]
[1642720659900,3.36064058,3033.4,3031.9,0.01136847]
[1642720660102,0.16461,3033.3,3031.9,0.01136847]
[1642720660405,0.16461,3033.3,3032.3,1.40718841]
[1642720660406,1.41028123,3032.9,3032.3,1.40718841]
[1642720660625,1.41028123,3032.9,3032.8,0.715564]
[1642720660626,2.49288123,3032.9,3032.8,0.715564]
[1642720660830,3.165436,3032.8,3032.4,0.00852636]
[1642720661026,0.16461,3032.7,3032.3,1.3098626]
[1642720661336,0.1318,3032.6,3032.3,1.3098626]
[1642720661526,0.0121844,3032.6,3032.3,1.3098626]
[1642720662127,0.1318,3032.6,3032.3,1.3098626]
[1642720662628,0.16461,3032.8,3032.3,1.3098626]
[1642720663035,0.95652,3033.0,3032.7,1.18721963]
[1642720663237,0.1318,3033.2,3032.7,1.18721963]
[1642720663433,0.16461,3033.4,3032.8,0.00625266]
[1642720663629,0.16461,3033.4,3032.7,0.99961829]
[1642720663831,0.13464212,3033.3,3032.7,0.99961829]
[1642720664030,0.16461,3033.2,3032.7,0.99961829]
[1642720664273,1.39250097,3033.1,3032.3,1.3098626]
[1642720664477,0.13350527,3033.1,3032.3,1.3098626]
[1642720664677,0.00113685,3033.0,3032.4,0.0022737]
[1642720664879,0.16574685,3033.0,3032.4,0.0022737]
[1642720665181,1.43377264,3032.4,3032.3,1.3098626]
[1642720665381,2.96228264,3032.4,3032.3,1.3098626]
[1642720665778,1.52851,3032.4,3032.3,1.3098626]
[1642720665978,1.39671,3032.4,3032.3,1.3098626]
[1642720666578,0.54336743,3032.4,3032.3,1.3098626]
[1642720666782,0.1318,3032.6,3032.3,2.67072785]
[1642720666978,0.1318,3033.0,3032.3,2.67072785]
[1642720667183,0.16236743,3033.2,3032.3,2.67072785]
[1642720667380,0.0022737,3032.8,3032.3,2.67072785]
[1642720667580,1.1562946,3032.8,3032.3,1.3098626]
[1642720667779,1.1562946,3032.8,3031.3,0.25297894]
[1642720667780,0.82484,3032.7,3031.3,0.25297894]
[1642720668038,0.0122461,3032.4,3030.8,0.6]
[1642720668233,0.00700322,3032.2,3031.4,0.00795793]
[1642720668426,0.67516743,3032.1,3031.4,0.00795793]
[1642720668626,1.18357171,3031.9,3031.4,0.00795793]
[1642720668827,0.54336743,3031.8,3031.4,0.00795793]
[1642720669026,0.381,3031.7,3031.4,0.00795793]
[1642720669433,0.16236743,3032.1,3031.4,0.00795793]
[1642720669834,0.16236743,3032.5,3031.4,0.00795793]
[1642720670035,0.5128,3032.7,3032.3,1.49217735]
[1642720670036,0.1318,3032.7,3032.3,1.49217735]
[1642720670238,0.16236743,3032.8,3032.3,1.49217735]
[1642720670440,0.16236743,3032.8,3032.3,1.44445105]
[1642720671773,0.16236743,3032.8,3031.8,0.82463]
[1642720671974,0.16236743,3032.8,3031.6,0.3]
[1642720672173,0.16236743,3032.8,3031.9,0.00284211]
[1642720672773,1.49019794,3032.5,3031.9,0.00284211]
[1642720672972,0.16236743,3032.8,3031.8,1.52937896]
[1642720673175,0.16236743,3032.8,3031.8,1.82937896]
[1642720673973,1.21363108,3032.7,3031.8,1.82937896]
[1642720674275,0.00113685,3032.6,3031.8,1.82937896]
[1642720674679,0.00170527,3032.7,3031.8,2.65399896]
[1642720674879,0.00170527,3032.7,3031.9,0.16465]
[1642720675078,0.00511582,3033.3,3032.0,0.04183368]
[1642720675280,0.00511582,3033.3,3032.0,0.00227369]
[1642720675550,0.16236743,3033.9,3032.2,0.07068148]
[1642720675551,0.00454739,3033.2,3032.2,0.07068148]
[1642720675741,0.00454739,3033.2,3032.7,0.05199157]
[1642720676041,0.16236743,3033.9,3032.7,0.05199157]
[1642720676042,0.00397897,3033.1,3032.7,1.17630157]
[1642720676441,0.30643816,3034.4,3032.7,1.17630157]
[1642720676442,0.00341055,3033.0,3032.8,2.21352104]
[1642720676641,0.00341055,3033.0,3032.8,1.51483745]
[1642720676842,0.17463816,3034.4,3032.8,1.51483745]
[1642720676843,0.00284212,3032.9,3032.8,1.51483745]
[1642720677243,0.00284212,3032.9,3032.4,0.01645956]
[1642720677244,0.01080005,3032.9,3032.4,0.01645956]
[1642720677644,0.0022737,3032.8,3032.4,0.01645956]
[1642720678047,0.16236743,3033.1,3032.4,0.01645956]
[1642720678048,0.00170527,3032.7,3032.4,0.01645956]
[1642720678245,3.45082121,3032.5,3032.4,0.01645956]
[1642720678548,5.04498864,3032.5,3032.4,0.01645956]
[1642720678742,5.42598864,3032.5,3032.4,0.01645956]
[1642720679144,4.12598864,3032.5,3032.4,0.01645956]
[1642720679576,4.42598864,3032.5,3032.4,0.01645956]
[1642720679775,4.12598864,3032.5,3032.4,0.01645956]
[1642720679976,1.50005743,3032.5,3032.4,0.01645956]
[1642720680577,1.36825743,3032.5,3032.4,0.01645956]
[1642720681278,0.54336743,3032.5,3031.2,2.64933289]
[1642720681478,0.16520955,3032.5,3031.4,1.64945]
[1642720681678,0.00227369,3032.4,3031.7,1.53750239]
[1642720682079,0.00170527,3032.3,3031.8,0.00113685]
[1642720682478,0.00113685,3032.2,3031.8,0.00113685]
[1642720682878,0.82485,3032.3,3031.7,0.00170527]
[1642720683128,0.00227369,3032.4,3031.7,0.00170527]
[1642720683326,0.16236743,3032.5,3031.7,0.00170527]
[1642720683327,0.00113685,3032.2,3031.7,0.00170527]
[1642720683526,0.00113685,3032.2,3031.3,0.82482]
[1642720683527,0.00170527,3032.3,3031.4,0.30341054]
[1642720683729,0.00227369,3032.4,3031.4,0.30341054]
[1642720683926,0.00113685,3032.2,3032.0,1.48478604]
[1642720684128,0.00170527,3032.3,3032.0,1.48478604]
[1642720684327,0.00227369,3032.4,3032.0,1.48478604]
[1642720684526,0.1318,3032.9,3032.0,1.48478604]
[1642720684527,0.00113685,3032.2,3032.0,1.48478604]
[1642720684727,0.00170527,3032.3,3032.0,1.48478604]
[1642720685027,0.00113685,3032.2,3032.0,1.48478604]
[1642720685429,0.16236743,3032.6,3032.0,1.48478604]
[1642720685630,0.00454739,3032.8,3032.0,1.78478604]
[1642720685830,0.16236743,3032.9,3032.0,1.78478604]
[1642720685831,0.00284212,3032.5,3032.0,1.78478604]
[1642720686030,0.00397896,3032.7,3032.0,2.60943884]
[1642720686235,0.16236743,3032.9,3032.0,2.60943884]
[1642720686236,0.00227369,3032.4,3032.0,2.60943884]
[1642720686431,0.00341054,3032.6,3032.0,1.78478604]
[1642720686629,0.16236743,3032.9,3032.0,1.78478604]
[1642720686630,0.00170527,3032.3,3032.0,1.78478604]
[1642720686872,0.00284212,3032.5,3032.0,2.60942604]
[1642720687071,0.16236743,3032.9,3032.0,2.60942604]
[1642720687072,0.00113685,3032.2,3032.0,2.60942604]
[1642720687278,0.00227369,3032.4,3032.0,1.78478604]
[1642720687480,0.1318,3033.1,3032.1,2.0]
[1642720687481,0.00454739,3032.8,3032.1,2.0]
[1642720687681,3.9207,3034.2,3032.1,0.00163158]
[1642720687682,0.00291581,3032.9,3032.1,0.00163158]
[1642720687878,0.16236743,3033.5,3031.9,2.48607337]
[1642720687879,0.00177896,3032.7,3032.2,0.00106315]
[1642720688077,0.00177896,3032.7,3031.9,0.01287827]
[1642720688078,0.00234739,3032.8,3032.1,0.00163158]
[1642720688278,0.00121054,3032.6,3032.0,0.0022]
[1642720688478,0.16236743,3033.5,3032.5,3.67751602]
[1642720688479,0.00177896,3032.7,3032.5,3.67751602]
[1642720688677,1.10966153,3033.2,3032.5,3.67751602]
[1642720688678,1.10966153,3033.2,3032.5,3.97751602]
[1642720688881,0.00121054,3032.6,3032.5,3.97751602]
[1642720689077,0.00405266,3033.1,3032.5,2.12751602]
[1642720689278,1.27202896,3033.2,3032.5,2.12751602]
[1642720689279,0.00121054,3032.6,3032.5,2.42751602]
[1642720689478,1.10966153,3033.2,3032.5,2.42751602]
[1642720689479,0.00348424,3033.0,3032.5,1.60300602]
[1642720689680,0.00121054,3032.6,3032.5,0.3]
[1642720689881,1.19359805,3033.1,3032.0,0.0022]
[1642720689882,0.00291581,3032.9,3032.0,0.0022]
[1642720690079,0.16357797,3032.6,3032.0,0.0022]
[1642720690280,0.16357797,3032.6,3031.8,0.82809685]
[1642720690281,1.19359805,3032.5,3031.8,0.82809685]
[1642720690527,1.19359805,3032.5,3031.9,0.00276842]
[1642720690729,1.15264112,3032.2,3031.9,0.00276842]
[1642720690932,1.15264112,3032.2,3031.7,0.00390527]
[1642720690933,3.31236743,3032.0,3031.7,0.00390527]
[1642720691135,0.1318,3031.9,3031.4,0.00561054]
[1642720691333,0.1318,3031.9,3030.9,0.00845266]
[1642720691334,1.32760286,3031.9,3030.9,0.00845266]
[1642720691543,1.19584825,3031.8,3030.9,0.00845266]
[1642720691733,1.41355646,3031.6,3031.0,1.41557706]
[1642720691934,0.82511,3031.5,3031.0,1.41557706]
[1642720692131,0.82511,3031.5,3031.1,0.00731581]
[1642720693837,0.82511,3031.5,3030.9,0.00845266]
[1642720693838,0.54336743,3031.4,3030.9,0.00845266]
[1642720694040,0.82524,3031.3,3030.9,0.00845266]
[1642720694282,0.381,3031.2,3030.9,0.00845266]
[1642720694484,3.31236743,3031.0,3030.9,0.00845266]
[1642720694681,5.21424267,3031.0,3030.9,0.00845266]
[1642720694882,6.42493478,3031.0,3030.9,0.00845266]
[1642720695281,4.51877743,3031.0,3030.9,0.00845266]
[1642720695486,4.51877743,3031.0,3030.2,1.4898379]
[1642720695685,2.44416743,3030.9,3030.2,1.4898379]
[1642720695887,0.67516743,3030.9,3030.2,1.4898379]
[1642720696287,0.67516743,3030.9,3030.8,1.76899955]
[1642720696489,0.5128,3030.9,3030.8,1.76899955]
[1642720696691,0.29416743,3031.4,3030.8,1.76899955]
[1642720696886,0.16236743,3031.7,3030.8,3.25983604]
[1642720697089,0.0022737,3031.3,3030.8,3.55983604]
[1642720697287,0.16236743,3031.7,3030.8,4.38481164]
[1642720697288,0.00397897,3031.6,3030.8,4.38481164]
[1642720697487,0.02342099,3032.1,3030.9,0.82499]
[1642720697488,0.00170527,3031.2,3030.9,0.82499]
[1642720697687,0.02342099,3032.1,3030.9,0.82499]
[1642720697688,0.00341054,3031.5,3030.9,0.82499]
[1642720697889,0.16236743,3032.2,3030.9,0.82499]
[1642720697890,0.00113685,3031.1,3030.9,0.82499]
[1642720698129,0.29416743,3032.2,3030.9,0.82499]
[1642720698130,0.00284212,3031.4,3030.9,0.82499]
[1642720698333,1.15849227,3032.1,3030.9,0.82499]
[1642720698334,0.00682108,3032.1,3030.9,3.94394244]
[1642720698530,3.38853567,3032.9,3030.9,3.94394244]
[1642720698531,0.0022737,3031.3,3030.9,4.84474244]
[1642720698730,0.00625266,3032.0,3031.3,0.82467]
[1642720698938,1.53410947,3032.4,3031.3,0.82467]
[1642720699136,1.53410947,3032.4,3031.4,0.3]
[1642720699338,2.69133285,3032.4,3031.4,0.3]
[1642720699532,2.69133285,3032.4,3031.2,1.64934]
[1642720699533,1.15722338,3032.3,3031.2,1.94934]
[1642720699738,1.17019835,3032.2,3031.9,1.54450092]
[1642720699933,2.70949733,3032.2,3031.2,0.3]
[1642720700135,2.69595393,3032.1,3031.2,0.82488]
[1642720700337,1.31959081,3032.0,3031.2,0.82488]
[1642720700535,1.16127604,3032.0,3031.2,1.12488]
[1642720700835,1.16070762,3031.9,3031.4,1.38901603]
[1642720701036,1.15722338,3031.8,3031.4,1.68901603]
[1642720701234,1.15722338,3031.7,3031.4,2.51380603]
[1642720701434,1.15722338,3031.6,3031.4,2.51380603]
[1642720701633,0.00177897,3031.6,3031.5,1.09944943]
[1642720701878,1.53410947,3032.0,3031.5,1.09944943]
[1642720702075,2.32714098,3032.2,3031.5,1.09944943]
[1642720702076,1.53410947,3032.2,3031.5,1.09944943]
[1642720702277,1.53410947,3032.0,3031.0,0.00163157]
[1642720702474,1.53410947,3031.8,3031.0,0.00163157]
[1642720702674,1.53759371,3031.9,3030.9,0.0022]
[1642720702878,0.00234739,3031.7,3030.9,0.0022]
[1642720703077,0.00291581,3031.8,3030.9,0.0022]
[1642720703278,1.20291604,3031.5,3030.9,0.0022]
[1642720703481,0.82509,3031.4,3030.9,0.0022]
[1642720703682,0.16236743,3031.3,3030.9,0.0022]
[1642720703880,4.12727827,3031.0,3030.9,0.0022]
[1642720704081,4.8445,3031.0,3030.9,0.0022]
[1642720704279,4.7127,3031.0,3030.9,0.0022]
[1642720704484,3.7127,3031.0,3030.9,0.0022]
[1642720704682,6.18568273,3031.0,3030.9,0.0022]
[1642720705085,6.56668273,3031.0,3030.9,0.0022]
[1642720705519,6.69848273,3031.0,3030.9,0.0022]
[1642720706122,7.52379273,3031.0,3030.9,0.0022]
[1642720706926,6.52379273,3031.0,3030.9,0.0022]
[1642720707727,2.08137743,3031.0,3030.9,0.0022]
[1642720707928,0.54336743,3031.0,3030.9,0.0022]
[1642720708126,0.381,3031.0,3030.9,0.0022]
[1642720708329,1.66590947,3031.6,3030.9,0.0022]
[1642720708529,0.16236743,3031.5,3030.9,0.0022]
[1642720708729,0.16357797,3031.5,3031.1,1.42452855]
[1642720709129,0.82508,3031.4,3030.9,0.0022]
[1642720709408,0.1318,3031.3,3030.9,0.0022]
[1642720709811,3.90314315,3031.0,3030.9,0.0022]
[1642720710006,3.2128,3031.0,3030.9,0.0022]
[1642720710208,5.57077455,3031.0,3030.9,0.0022]
[1642720710405,4.57077455,3031.0,3030.9,0.0022]
[1642720710606,5.87077455,3031.0,3030.9,0.0022]
[1642720711006,5.87077455,3031.0,3030.0,0.141553]
[1642720711007,3.97532,3030.9,3030.0,0.141553]
[1642720711208,18.95,3030.7,3030.0,0.141553]
[1642720711408,18.95,3030.7,3030.1,0.00454739]
[1642720711409,0.01279659,3030.3,3030.1,0.00454739]
[1642720711609,3.82536743,3030.2,3030.1,0.00454739]
[1642720711907,2.35,3030.0,3028.8,2.131782]
[1642720712106,0.82561,3029.7,3028.8,0.131782]
[1642720712311,2.5,3029.6,3028.2,1.47042308]
[1642720712506,2.66236743,3029.6,3028.2,1.47042308]
[1642720712707,1.13088488,3029.5,3028.7,1.28592037]
[1642720712907,0.00341054,3029.5,3028.7,1.28592037]
[1642720713121,0.00284212,3029.4,3028.7,1.28592037]
[1642720713427,0.0022737,3029.3,3028.7,1.28592037]
[1642720713824,0.00170527,3029.2,3028.7,1.28592037]
[1642720714025,0.00170527,3029.2,3028.7,2.11144927]
[1642720714229,0.00113685,3029.1,3028.7,2.11144927]
[1642720714624,0.82557,3029.6,3028.7,2.11144927]
[1642720715025,0.82557,3029.6,3028.4,1.21569881]
[1642720715026,0.00341054,3029.5,3029.2,1.13434338]
[1642720715229,1.09021054,3029.5,3028.5,0.263595]
[1642720715426,0.00284212,3029.4,3028.5,0.263595]
[1642720715627,0.00284212,3029.4,3028.6,0.00170527]
[1642720715827,0.0022737,3029.3,3028.6,0.00170527]
[1642720716026,0.0022737,3029.3,3028.5,0.00227369]
[1642720716227,0.00170527,3029.2,3028.5,0.00227369]
[1642720716626,0.00113685,3029.1,3028.5,0.00227369]
[1642720716873,0.72670685,3029.6,3028.7,2.3]
[1642720717174,0.72670685,3029.6,3029.5,1.40979307]
[1642720717376,0.72670685,3029.6,3028.8,0.00170527]
[1642720717572,0.72954897,3029.6,3028.8,0.00170527]
[1642720717772,0.72954897,3029.6,3028.3,0.83015319]
[1642720717974,0.72954897,3029.6,3028.4,0.00397896]
[1642720718174,0.54336743,3029.5,3028.7,0.00400519]
[1642720718377,0.82579,3029.3,3028.7,0.00400519]
[1642720718575,0.381,3029.2,3028.8,0.00170527]
[1642720719274,0.82579,3029.3,3028.9,2.6]
[1642720719478,0.00170527,3029.4,3028.9,2.6]
[1642720719675,0.00170527,3029.4,3029.0,1.23068159]
[1642720719878,0.02342099,3030.0,3029.1,2.0]
[1642720720078,0.30442099,3030.2,3029.0,1.23068159]